fUSD/lending_fUSD_20251105
["ID","MTS","AMOUNT","RATE_DAILY","PERIOD"]
[393219671,1762337982731,-10000.01,0.00017105,2]
[393219672,1762337982847,-10000.01,0.00017105,2]
[393219673,1762337982952,-10000.01,0.00017105,2]
[393219674,1762337986870,-10000.01,0.00017105,2]
[393219675,1762337986994,-10000.01,0.00017105,2]
[393219676,1762337987319,-10000.01,0.00017105,2]
[393219677,1762337987331,-10000.01,0.00017105,2]
[393219678,1762337987402,-10000.01,0.00017105,2]
[393219679,1762337987553,-10000.01,0.00017105,2]
[393219680,1762337987667,-10000.01,0.00017105,2]
[393219681,1762337987777,-10000.01,0.00017105,2]
[393219682,1762337987881,-10000.01,0.00017105,2]
[393219683,1762337988014,-10000.01,0.00017105,2]
[393219684,1762337988117,-10000.01,0.00017105,2]
[393219685,1762337988230,-10000.01,0.00017105,2]
[393219686,1762337988354,-10000.01,0.00017105,2]
[393219687,1762337988468,-10000.01,0.00017105,2]
[393219688,1762337988604,-10000.01,0.00017105,2]
[393219689,1762337992911,-10000.01,0.00017105,2]
[393219690,1762337993035,-10000.01,0.00017105,2]
[393219691,1762337993184,-10000.01,0.00017105,2]
[393219692,1762337993304,-10000.01,0.00017105,2]
[393219693,1762337993441,-10000.01,0.00017105,2]
[393219694,1762337993560,-10000.01,0.00017105,2]
[393219695,1762337993704,-10000.01,0.00017105,2]
[393219696,1762337993829,-10000.01,0.00017105,2]
[393219697,1762337993990,-10000.01,0.00017105,2]
[393219698,1762337994135,-10000.01,0.00017105,2]
[393219699,1762337994282,-10000.01,0.00017105,2]
[393219700,1762337994389,-10000.01,0.00017105,2]
[393219701,1762337994499,-10000.01,0.00017105,2]
[393219702,1762337994614,-10000.01,0.00017105,2]
[393219703,1762337994750,-10000.01,0.00017105,2]
[393219704,1762338061401,-279.58,0.00015982,2]
[393219705,1762338064187,-166.66,0.00015982,2]
[393219706,1762338076454,-53.76,0.00015982,2]
[393219707,1762338076477,-127.34314797,0.00015982,2]
[393219708,1762338078734,-208.38015668,0.00015982,2]
[393219709,1762338080232,-164.27669535,0.00015982,2]
[393219710,1762338080254,-22.91074404,0.00015982,2]
[393219712,1762338082504,-339.00080313,0.00015982,2]
[393219713,1762338091408,-164.46490794,0.00015882,2]
[393219714,1762338091663,-138.08845283,0.00015982,2]
[393219715,1762338091688,-377.36092997,0.00015982,2]
[393219716,1762338094062,-122.63907003,0.00015982,2]
[393219717,1762338094084,-64.54836936,0.00015982,2]
[393219718,1762338096333,-435.45163064,0.00015982,2]
[393219719,1762338096358,-103.59661839,0.00015982,2]
[393219720,1762338099050,-191.38165164,0.00015902,2]
[393219721,1762338100715,-300.0,0.00015902,2]
[393219722,1762338102364,-195.0,0.00015902,2]
[393219723,1762338104568,-203.62329649,0.00015902,2]
[393219724,1762338106252,-205.01292417,0.00015902,2]
[393219725,1762338108452,-370.48060137,0.00015902,2]
[393219726,1762338110640,-300.0,0.00015902,2]
[393219727,1762338113919,-188.90281116,0.00015902,2]
[393219728,1762338118524,-283.05108697,0.00015902,2]
[393219729,1762338120082,-203.01102594,0.00015902,2]
[393219730,1762338123956,-200.91891303,0.00015902,2]
[393219731,1762338127177,-216.03,0.00015902,2]
[393219732,1762338129231,-2727.70315023,0.00015902,2]
[393219733,1762338129259,-396.40338161,0.00015982,2]
[393219734,1762338129287,-1000.0,0.00016082,2]
[393219735,1762338129314,-500.0,0.00016356,2]
[393219736,1762338129389,-751.79693632,0.00016356,2]
[393219737,1762338129424,-248.20306368,0.00016356,2]
[393219738,1762338129461,-9503.60387264,0.00016589,2]
[393219739,1762338129560,-10000.01,0.00016589,2]
[393219740,1762338129694,-10000.01,0.00016589,2]
[393219741,1762338129812,-2182.26612736,0.00016589,2]
[393219742,1762338130094,-413.8384,0.00017005,2]
[393219743,1762338130125,-2307.80094528,0.00017005,2]
[393219744,1762338130182,-192.19905472,0.00017005,2]
[393219745,1762338130211,-300.0,0.00017103,2]
[393219746,1762338130242,-300.0,0.00017104,2]
[393219747,1762338130272,-1200.0,0.00017104,2]
[393219748,1762338130304,-500.0,0.00017104,2]
[393219749,1762338130342,-550.0,0.00017104,2]
[393219750,1762338130375,-500.0,0.00017104,2]
[393219751,1762338130407,-500.0,0.00017104,2]
[393219752,1762338130715,-192.19905472,0.00017105,2]
[393219753,1762338130733,-1915.61189056,0.00017105,2]
[393219754,1762338130747,-10000.01,0.00017105,2]
[393219755,1762338130780,-10000.01,0.00017105,2]
[393219756,1762338130821,-1120.76277478,0.00017105,2]
[393219757,1762338130854,-1000.0,0.00017105,2]
[393219758,1762338130899,-7879.24722522,0.00017105,2]
[393219759,1762338130939,-4276.07165382,0.00017105,2]
[393219760,1762338130964,-1447.86669236,0.00017105,2]
[393219761,1762338130979,-150.0,0.00017123,2]
[393219762,1762338130992,-151.0,0.00017162,2]
[393219763,1762338131002,-151.0,0.00017162,2]
[393219764,1762338131012,-151.0,0.00017162,2]
[393219765,1762338131023,-151.0,0.00017162,2]
[393219766,1762338131033,-151.0,0.00017162,2]
[393219767,1762338131045,-151.0,0.00017162,2]
[393219768,1762338131057,-151.0,0.00017162,2]
[393219769,1762338131067,-500.0,0.00017172,2]
[393219770,1762338131080,-500.0,0.00017172,2]
[393219771,1762338131091,-500.0,0.00017173,2]
[393219772,1762338131100,-364.7,0.00017173,2]
[393219773,1762338131110,-1204.37165382,0.00017173,2]
[393219774,1762338131127,-1120.76277478,0.00017173,2]
[393219775,1762338131146,-27.7055714,0.00017173,2]
[393219776,1762338131156,-972.2944286,0.00017173,2]
[393219777,1762338131181,-1000.0,0.000168,2]
[393219778,1762338131195,-4758.48445044,0.00017173,2]
[393219779,1762338131225,-5723.93834618,0.00017173,2]
[393219780,1762338131284,-151.0,0.00017162,2]
[393219781,1762338131315,-151.0,0.00017162,2]
[393219782,1762338131396,-9698.01,0.00017173,2]
[393219783,1762338131420,-151.0,0.00017173,2]
[393219784,1762338131447,-151.0,0.00017173,2]
[393219785,1762338131468,-9396.01,0.00017173,2]
[393219786,1762338131495,-10000.01,0.00017173,2]
[393219787,1762338166360,10000.0,0.00030137,120]
[393219791,1762338308387,17232.0,0.00030137,120]
[393219792,1762338319980,11.47623516,9e-05,2]
[393219793,1762338320008,200.0,9e-05,2]
[393219794,1762338320034,194.63177242,9e-05,2]
[393219795,1762338320060,208.98782464,9e-05,2]
[393219796,1762338320085,1926.79906952,9e-05,2]
[393219797,1762338325549,1018.99993953,0.000108,2]
[393219798,1762338335791,1184.38081676,9e-05,2]
[393219799,1762338336409,-216.94891303,0.00015801,2]
[393219800,1762338427545,-300.0,0.0001572,2]
[393219801,1762338427582,-9400.01,0.00015721,2]
[393219807,1762338430832,-2746.104743,0.00015721,2]
[393219808,1762338430879,-1200.0,0.00015881,2]
[393219809,1762338434456,-727.26170701,0.00015882,2]
[393219810,1762338434605,-8545.48658598,0.00015882,2]
[393219811,1762338442931,-300.0,0.00015981,2]
[393219812,1762338442961,-500.0,0.00015982,2]
[393219813,1762338442991,-250.0,0.00015982,2]
[393219814,1762338443021,-500.0,0.00015982,2]
[393219818,1762338487255,186.59130588,0.000135,2]
[393219819,1762338494339,1915.21470856,0.0001,2]
[393219820,1762338496171,388.24500581,7.888e-05,2]
[393219821,1762338505372,2711.84436909,0.0001,2]
[393219822,1762338514356,10570.7761181,0.00015,3]
[393219823,1762338515049,8288.24521793,0.0001,2]
[393219824,1762338517845,1342.24536474,0.00013699,2]
[393219856,1762338631452,-1078.817049,0.00015702,2]
[393219857,1762338631461,-498.6163,0.00015782,2]
[393219858,1762338631470,-1843.71642365,0.00015807,2]
[393219859,1762338631479,-150.0,0.00015967,2]
[393219860,1762338631489,-461.20189445,0.00015982,2]
[393219861,1762338631499,-300.0,0.00016081,2]
[393219862,1762338631509,-1200.0,0.00016081,2]
[393219863,1762338631518,-500.0,0.00016082,2]
[393219864,1762338631530,-500.0,0.00016082,2]
[393219865,1762338631539,-195.0,0.00016082,2]
[393219866,1762338631548,-500.0,0.00016082,2]
[393219867,1762338631557,-500.0,0.00016082,2]
[393219868,1762338631567,-500.0,0.00016082,2]
[393219869,1762338631576,-500.0,0.00016082,2]
[393219870,1762338631586,-500.0,0.00016082,2]
[393219871,1762338631595,-751.81138216,0.00016082,2]
[393219872,1762338631614,-248.18861784,0.00016082,2]
[393219873,1762338631623,-461.20189445,0.00016119,2]
[393219874,1762338631633,-500.0,0.00016185,2]
[393219875,1762338631642,-671.0,0.00016199,2]
[393219876,1762338631651,-550.0,0.00016199,2]
[393219877,1762338631661,-103901.64322124,0.000162,5]
[393219878,1762338631670,-461.20189445,0.00016256,2]
[393219879,1762338631679,-500.0,0.00016356,2]
[393219880,1762338631688,-1000.0,0.00016356,2]
[393219881,1762338631698,-1000.0,0.000165,2]
[393219882,1762338631707,-4257.99,0.00016744,2]
[393219883,1762338631717,-434.99533144,0.00016892,2]
[393219885,1762338631726,-2500.0,0.00016892,2]
[393219886,1762338631735,-1262.4017851,0.00016904,2]
[393219888,1762338631745,-337.82055885,0.00016973,2]
[393219890,1762338631754,-585.02702278,0.00016973,2]
[393219892,1762338631763,-500.0,0.00016973,2]
[393219893,1762338631772,-500.0,0.00016973,2]
[393219894,1762338631782,-500.0,0.00016973,2]
[393219895,1762338631791,-500.97625752,0.00016973,2]
[393219896,1762338631800,-616.14579358,0.00016973,2]
[393219897,1762338631809,-475.6221365,0.00016973,2]
[393219899,1762338631819,-503.00202269,0.00016973,2]
[393219901,1762338631828,-500.0,0.00016973,2]
[393219902,1762338631838,-500.0,0.00016973,2]
[393219903,1762338631847,-500.0,0.00016991,2]
[393219904,1762338631856,-188043.38110061,0.00016992,2]
[393219905,1762338631867,-15725.50425549,0.00016992,2]
[393219906,1762338631876,-539.85630639,0.00016992,2]
[393219909,1762338637338,-3560.49342091,0.00016992,2]
[393219910,1762338637347,-882.26708813,0.00017015,2]
[393219911,1762338637497,-380.13469695,0.00017015,2]
[393219912,1762338637506,-260.92059889,0.00017036,2]
[393219915,1762338639395,-174.07473255,0.00017036,2]
[393219916,1762338639406,-1000.0,0.00017042,2]
[393219917,1762338639416,-156.63746019,0.00017073,2]
[393219918,1762338639425,-500.0,0.00017096,2]
[393219919,1762338639434,-500.0,0.00017104,2]
[393219920,1762338639444,-2365.29897499,0.00017104,2]
[393219921,1762338639455,-6597.75825,0.00017104,2]
[393219922,1762338639870,-1.7e-07,0.00017104,2]
[393219923,1762338639881,-12873.19277484,0.00017104,2]
[393219924,1762338639891,-1262.40178508,0.00017125,2]
[393219925,1762338639900,-2555.38,0.00017161,2]
[393219926,1762338639909,-758.01,0.00017162,2]
[393219927,1762338639919,-9999.99,0.00017162,2]
[393219928,1762338639927,-500.0,0.00017162,2]
[393219929,1762338639937,-500.0,0.00017162,2]
[393219931,1762338639946,-500.0,0.00017162,2]
[393219932,1762338639955,-500.0,0.00017162,2]
[393219933,1762338639965,-500.0,0.00017162,2]
[393219934,1762338639974,-500.0,0.00017162,2]
[393219935,1762338639983,-500.0,0.00017162,2]
[393219936,1762338639999,-500.0,0.00017162,2]
[393219937,1762338640009,-601.08419191,0.00017162,2]
[393219938,1762338640019,-500.0,0.00017162,2]
[393219939,1762338640029,-151.0,0.00017162,2]
[393219940,1762338640038,-322.6107,0.00017162,2]
[393219941,1762338640048,-500.0,0.00017162,2]
[393219942,1762338640066,-151.0,0.00017162,2]
[393219943,1762338640076,-500.0,0.00017162,2]
[393219944,1762338640086,-151.0,0.00017162,2]
[393219945,1762338640096,-500.0,0.00017162,2]
[393219946,1762338640105,-151.0,0.00017162,2]
[393219947,1762338640115,-500.0,0.00017162,2]
[393219948,1762338640124,-151.0,0.00017162,2]
[393219949,1762338640134,-500.0,0.00017162,2]
[393219950,1762338640143,-151.0,0.00017162,2]
[393219951,1762338640153,-151.0,0.00017162,2]
[393219952,1762338640162,-151.0,0.00017162,2]
[393219953,1762338640172,-151.0,0.00017162,2]
[393219954,1762338640181,-151.0,0.00017162,2]
[393219955,1762338640194,-151.0,0.00017162,2]
[393219956,1762338640204,-151.0,0.00017162,2]
[393219957,1762338640213,-151.0,0.00017162,2]
[393219958,1762338640223,-151.0,0.00017162,2]
[393219959,1762338640232,-151.0,0.00017162,2]
[393219960,1762338640242,-151.0,0.00017162,2]
[393219961,1762338640251,-151.0,0.00017162,2]
[393219962,1762338640262,-151.0,0.00017162,2]
[393219963,1762338640273,-151.0,0.00017162,2]
[393219964,1762338640284,-151.0,0.00017162,2]
[393219965,1762338640293,-151.0,0.00017162,2]
[393219966,1762338640303,-151.0,0.00017162,2]
[393219967,1762338640313,-151.0,0.00017162,2]
[393219968,1762338640322,-151.0,0.00017162,2]
[393219969,1762338640331,-151.0,0.00017162,2]
[393219970,1762338640341,-250.0,0.00017162,2]
[393219971,1762338640351,-151.0,0.00017162,2]
[393219972,1762338640360,-151.0,0.00017162,2]
[393219973,1762338640370,-151.0,0.00017162,2]
[393219974,1762338640379,-250.0,0.00017162,2]
[393219975,1762338640389,-151.0,0.00017162,2]
[393219976,1762338640399,-151.0,0.00017162,2]
[393219977,1762338640409,-151.0,0.00017162,2]
[393219978,1762338640419,-250.0,0.00017162,2]
[393219979,1762338640428,-151.0,0.00017162,2]
[393219980,1762338640438,-250.0,0.00017162,2]
[393219981,1762338640451,-151.0,0.00017162,2]
[393219982,1762338640460,-151.0,0.00017162,2]
[393219983,1762338640470,-172.1351218,0.00017162,2]
[393219984,1762338640479,-151.0,0.00017162,2]
[393219985,1762338640489,-151.0,0.00017162,2]
[393219986,1762338640499,-151.0,0.00017162,2]
[393219987,1762338640508,-151.0,0.00017162,2]
[393219988,1762338640517,-151.0,0.00017162,2]
[393219989,1762338640527,-151.0,0.00017162,2]
[393219990,1762338640536,-151.0,0.00017162,2]
[393219991,1762338640546,-151.0,0.00017162,2]
[393219992,1762338640557,-151.0,0.00017162,2]
[393219993,1762338640566,-151.0,0.00017162,2]
[393219994,1762338640575,-151.0,0.00017162,2]
[393219995,1762338640585,-151.0,0.00017162,2]
[393219996,1762338640595,-151.0,0.00017162,2]
[393219997,1762338640605,-500.0,0.00017172,2]
[393219998,1762338640615,-150.99,0.00017172,2]
[393219999,1762338640625,-465.40478572,0.00017173,2]
[393220000,1762338640635,-160.4752958,0.00017173,2]
[393220001,1762338640645,-500.0,0.00017173,2]
[393220002,1762338640655,-500.0,0.00017173,2]
[393220003,1762338640664,-500.0,0.00017173,2]
[393220004,1762338640674,-500.0,0.00017173,2]
[393220005,1762338640684,-216.03107045,0.00017173,2]
[393220006,1762338640693,-500.0,0.00017173,2]
[393220007,1762338640703,-157.39973233,0.00017173,2]
[393220008,1762338640712,-501.72530811,0.00017173,2]
[393220009,1762338640721,-500.0,0.00017173,2]
[393220010,1762338640731,-500.0,0.00017173,2]
[393220011,1762338640740,-500.0,0.00017173,2]
[393220012,1762338640750,-361.27134346,0.00017173,2]
[393220013,1762338640763,-434.99533144,0.0001718,2]
[393220014,1762338640773,-500.0,0.00017204,2]
[393220015,1762338640787,-425.64626727,0.00017204,2]
[393220016,1762338640798,-1262.40178508,0.00017236,2]
[393220017,1762338640807,-1959.43762471,0.00017273,4]
[393220018,1762338640818,-216.94891303,0.00017273,2]
[393220019,1762338640832,-195.0,0.00017273,2]
[393220020,1762338640842,-250.0,0.00017273,2]
[393220021,1762338640852,-501.72880029,0.00017291,2]
[393220022,1762338640862,-1038.41692689,0.00017292,2]
[393220023,1762338640873,-935.0,0.00017317,2]
[393220024,1762338640882,-434.99533144,0.00017324,2]
[393220025,1762338640892,-1262.40178508,0.00017347,2]
[393220026,1762338640902,-286.04383693,0.0001736,2]
[393220027,1762338640912,-300.0,0.0001738,2]
[393220028,1762338640922,-1623.55231918,0.0001738,2]
[393220029,1762338640933,-758.01,0.00017436,2]
[393220030,1762338640945,-1000.0,0.00017452,2]
[393220031,1762338640956,-1262.40178508,0.00017457,2]
[393220032,1762338640966,-434.99533144,0.00017468,2]
[393220033,1762338640976,-2500.0,0.00017495,3]
[393220034,1762338640985,-2500.0,0.00017504,3]
[393220035,1762338640995,-2500.0,0.00017513,3]
[393220036,1762338641005,-5000.0,0.00017518,2]
[393220037,1762338641014,-1000.0,0.00017521,2]
[393220038,1762338641264,-1000.0,0.00017521,2]
[393220039,1762338641275,-2500.0,0.00017522,3]
[393220040,1762338641287,-2500.0,0.0001753,3]
[393220041,1762338641296,-2500.0,0.00017539,3]
[393220042,1762338641306,-1019.0,0.00017541,2]
[393220043,1762338641315,-151.0,0.00017542,2]
[393220044,1762338641325,-500.0,0.00017544,2]
[393220045,1762338641334,-500.0,0.00017544,2]
[393220046,1762338641343,-500.0,0.00017544,2]
[393220047,1762338641352,-500.0,0.00017544,2]
[393220048,1762338641363,-500.0,0.00017544,2]
[393220049,1762338641379,-500.0,0.00017544,2]
[393220050,1762338641388,-500.0,0.00017544,2]
[393220051,1762338641397,-500.0,0.00017544,2]
[393220052,1762338641406,-500.0,0.00017544,2]
[393220053,1762338641416,-500.0,0.00017544,2]
[393220054,1762338641424,-500.0,0.00017544,2]
[393220055,1762338641433,-500.0,0.00017544,2]
[393220056,1762338641443,-500.0,0.00017544,2]
[393220057,1762338641452,-500.0,0.00017544,2]
[393220058,1762338641463,-500.0,0.00017544,2]
[393220059,1762338641473,-500.0,0.00017544,2]
[393220060,1762338641482,-500.0,0.00017544,2]
[393220061,1762338641491,-500.0,0.00017544,2]
[393220062,1762338641500,-500.0,0.00017544,2]
[393220063,1762338641510,-568.39618143,0.00017544,2]
[393220064,1762338641528,-500.0,0.00017544,2]
[393220065,1762338641538,-500.0,0.00017544,2]
[393220066,1762338641550,-500.0,0.00017544,2]
[393220067,1762338641560,-500.0,0.00017544,2]
[393220068,1762338641569,-500.0,0.00017544,2]
[393220069,1762338641579,-500.0,0.00017544,2]
[393220070,1762338641589,-500.0,0.00017544,2]
[393220071,1762338641601,-500.0,0.00017544,2]
[393220072,1762338641611,-500.0,0.00017544,2]
[393220073,1762338641621,-500.0,0.00017544,2]
[393220074,1762338641630,-500.0,0.00017544,2]
[393220075,1762338641640,-500.0,0.00017544,2]
[393220076,1762338641649,-500.0,0.00017544,2]
[393220077,1762338641659,-500.0,0.00017544,2]
[393220078,1762338641668,-500.0,0.00017544,2]
[393220079,1762338641677,-500.0,0.00017544,2]
[393220080,1762338641687,-500.0,0.00017544,2]
[393220081,1762338641696,-500.0,0.00017544,2]
[393220082,1762338641705,-500.0,0.00017544,2]
[393220083,1762338641714,-550.0,0.00017544,2]
[393220084,1762338641723,-500.0,0.00017544,2]
[393220085,1762338641732,-500.0,0.00017544,2]
[393220086,1762338641741,-500.0,0.00017544,2]
[393220087,1762338641750,-250.97165323,0.00017544,2]
[393220088,1762338641760,-500.0,0.00017544,2]
[393220089,1762338641769,-500.0,0.00017544,2]
[393220090,1762338641778,-500.0,0.00017544,2]
[393220091,1762338641789,-2444.4038,0.00017545,2]
[393220092,1762338641799,-420000.0,0.00017545,2]
[393220093,1762338641808,-1000.0,0.00017545,2]
[393220094,1762338641818,-221.75791629,0.00017545,2]
[393220095,1762338641827,-2500.0,0.00017548,3]
[393220096,1762338641837,-2500.0,0.00017557,3]
[393220097,1762338641846,-504.6181,0.00017562,2]
[393220098,1762338641855,-2500.0,0.00017566,3]
[393220099,1762338641864,-1262.40178508,0.00017568,2]
[393220100,1762338641874,-197.03833275,0.00017573,2]
[393220101,1762338641882,-500.0,0.00017573,2]
[393220102,1762338641891,-500.0,0.00017573,2]
[393220103,1762338641900,-632.5089604,0.00017573,2]
[393220104,1762338641910,-500.0,0.00017573,2]
[393220105,1762338641919,-500.0,0.00017573,2]
[393220106,1762338641928,-500.0,0.00017573,2]
[393220107,1762338641940,-500.0,0.00017573,2]
[393220108,1762338641949,-500.0,0.00017573,2]
[393220109,1762338641958,-517.35927454,0.00017573,2]
[393220110,1762338641967,-500.0,0.00017573,2]
[393220111,1762338641979,-369.18541014,0.00017573,2]
[393220112,1762338641998,-2500.0,0.00017574,3]
[393220113,1762338642008,-420.0,0.0001758,2]
[393220114,1762338642017,-2500.0,0.00017583,3]
[393220115,1762338642027,-2500.0,0.00017592,3]
[393220116,1762338642038,-2500.0,0.00017601,3]
[393220117,1762338642047,-376.596,0.00017601,2]
[393220118,1762338642057,-2500.0,0.0001761,3]
[393220119,1762338642066,-434.99533144,0.00017612,2]
[393220120,1762338642075,-2500.0,0.00017618,3]
[393220121,1762338642084,-2500.0,0.00017627,3]
[393220122,1762338642093,-2500.0,0.00017636,3]
[393220123,1762338642102,-2500.0,0.00017645,3]
[393220124,1762338642111,-2500.0,0.00017654,3]
[393220125,1762338642121,-2500.0,0.00017662,3]
[393220126,1762338642130,-1680.0,0.00017669,2]
[393220127,1762338642139,-2500.0,0.00017671,3]
[393220128,1762338642148,-1262.40178508,0.00017679,2]
[393220129,1762338642157,-2500.0,0.0001768,3]
[393220130,1762338642167,-2500.0,0.00017689,3]
[393220131,1762338642176,-195.0,0.0001769,2]
[393220132,1762338642185,-2500.0,0.00017698,3]
[393220133,1762338642198,-2500.0,0.00017706,3]
[393220135,1762338642208,-758.01,0.0001771,2]
[393220137,1762338642217,-2500.0,0.00017715,3]
[393220138,1762338642226,-1000.0,0.00017721,2]
[393220139,1762338642236,-546.71084981,0.00017721,2]
[393220140,1762338642245,-1000.0,0.00017721,2]
[393220141,1762338642254,-1000.0,0.00017721,2]
[393220142,1762338642264,-1000.0,0.00017721,2]
[393220143,1762338642274,-2500.0,0.00017724,3]
[393220144,1762338642284,-500.0,0.00017726,2]
[393220145,1762338642294,-1000.0,0.00017726,2]
[393220146,1762338642303,-2500.0,0.00017733,3]
[393220147,1762338642312,-2500.0,0.00017742,3]
[393220148,1762338642321,-2500.0,0.0001775,3]
[393220149,1762338642330,-434.99533144,0.00017756,2]
[393220150,1762338642339,-2500.0,0.00017759,3]
[393220151,1762338642351,-2500.0,0.00017768,3]
[393220152,1762338642360,-564.57,0.00017774,3]
[393220153,1762338642369,-2500.0,0.00017777,3]
[393220154,1762338642378,-893.58488772,0.00017778,2]
[393220155,1762338642387,-188.18,0.00017784,3]
[393220156,1762338642396,-2500.0,0.00017786,3]
[393220157,1762338642405,-1262.40178508,0.00017789,2]
[393220158,1762338642415,-2500.0,0.00017794,3]
[393220159,1762338642424,-300.36474006,0.000178,2]
[393220160,1762338642433,-2771.93936189,0.000178,2]
[393220161,1762338642442,-2500.0,0.00017803,3]
[393220162,1762338642451,-2500.0,0.00017812,3]
[393220163,1762338642461,-300.36474004,0.00017817,2]
[393220164,1762338642470,-525.16853,0.0001782,2]
[393220165,1762338642480,-300.36474004,0.00017833,2]
[393220166,1762338642489,-183.86,0.00017847,2]
[393220167,1762338642498,-2587.72,0.00017847,2]
[393220168,1762338642507,-300.36474004,0.0001785,2]
[393220169,1762338642516,-200.0,0.00017856,2]
[393220170,1762338642525,-300.36474004,0.00017867,2]
[393220171,1762338642537,-500.0,0.00017882,2]
[393220172,1762338642546,-300.36474004,0.00017883,2]
[393220173,1762338642556,-2771.93936189,0.000179,2]
[393220174,1762338642565,-251.56824121,0.000179,2]
[393220175,1762338642574,-1262.40178508,0.000179,2]
[393220176,1762338642583,-300.36474004,0.000179,2]
[393220177,1762338642592,-1317.6081956,0.000179,2]
[393220178,1762338642602,-163.4868763,0.000179,2]
[393220179,1762338642611,-159.24134611,0.000179,2]
[393220180,1762338642620,-377.22520384,0.000179,2]
[393220181,1762338642630,-434.99533144,0.000179,2]
[393220182,1762338642639,-284.52928108,0.000179,2]
[393220183,1762338642648,-525.16853,0.0001793,2]
[393220184,1762338642658,-1019.0,0.00017947,2]
[393220185,1762338642667,-300.0,0.00017966,2]
[393220186,1762338642677,-500.0,0.0001797,2]
[393220187,1762338642686,-800.63275327,0.0001797,2]
[393220188,1762338642696,-1000.0,0.0001797,2]
[393220189,1762338642705,-1000.0,0.0001797,2]
[393220190,1762338642715,-1000.0,0.0001797,2]
[393220191,1762338642724,-500.0,0.00017972,2]
[393220192,1762338642734,-500.0,0.00017972,2]
[393220193,1762338642744,-5295.0,0.00017972,2]
[393220194,1762338642753,-526.97417282,0.00017973,2]
[393220195,1762338642763,-500.0,0.00017973,2]
[393220196,1762338642772,-500.0,0.00017973,2]
[393220197,1762338642782,-758.01,0.00017984,2]
[393220198,1762338642791,-186.12741346,0.0001799,2]
[393220199,1762338642801,-186.12741346,0.0001799,2]
[393220200,1762338642810,-186.12741346,0.0001799,2]
[393220201,1762338642820,-500.0,0.00017997,2]
[393220202,1762338642830,-500.0,0.00017997,2]
[393220203,1762338642839,-151.0,0.00017997,2]
[393220204,1762338642849,-93392.8427271,0.00017998,2]
[393220205,1762338642859,-26458.8905274,0.00017998,2]
[393220206,1762338642868,-156.833,0.00017999,2]
[393220207,1762338642877,-300.0,0.00017999,2]
[393220208,1762338642887,-666.0,0.00017999,2]
[393220209,1762338642896,-300.0,0.00017999,2]
[393220210,1762338642905,-666.0,0.00017999,2]
[393220211,1762338642914,-432.36280577,0.00017999,2]
[393220212,1762338642923,-345.92808519,0.00017999,2]
[393220213,1762338642933,-150.0,0.00017999,2]
[393220214,1762338642942,-217.3955486,0.00017999,2]
[393220215,1762338642952,-150.0,0.00017999,2]
[393220216,1762338642961,-150.0,0.00017999,2]
[393220217,1762338642970,-151.13904288,0.00017999,2]
[393220218,1762338642980,-150.0,0.00017999,2]
[393220219,1762338642989,-150.0,0.00017999,2]
[393220220,1762338642998,-150.0,0.00017999,2]
[393220221,1762338643007,-300.0,0.00017999,2]
[393220222,1762338643016,-666.0,0.00017999,2]
[393220223,1762338643026,-150.0,0.00017999,2]
[393220224,1762338643036,-150.0,0.00017999,2]
[393220225,1762338643046,-150.0,0.00017999,2]
[393220226,1762338643055,-500.0,0.00017999,2]